bitfinex/quotes_SOLUSD_20220211
["timestamp","ask_amount","ask_price","bid_price","bid_amount"]
[1644620394820,18.61299452,95.756,95.65,0.024]
[1644620395020,257.38324752,95.755,95.64,0.024]
[1644620395221,257.38324752,95.755,95.63,0.024]
[1644620395422,23.1414,95.759,95.64,0.024]
[1644620395423,292.79152552,95.754,95.64,0.024]
[1644620395621,292.79152552,95.754,95.63,0.024]
[1644620395823,15.687,95.73,95.64,0.024]
[1644620396022,257.92836,95.729,95.63,0.024]
[1644620396321,209.25626,95.728,95.63,0.024]
[1644620396524,211.63992791,95.728,95.63,0.024]
[1644620396722,15.6869,95.71,95.63,0.024]
[1644620396921,15.6869,95.71,95.631,5.224]
[1644620397123,209.25626,95.709,95.631,5.224]
[1644620397825,233.797841,95.709,95.631,5.224]
[1644620398033,209.25626,95.708,95.631,5.224]
[1644620398228,209.25626,95.709,95.631,5.224]
[1644620398430,209.25626,95.707,95.631,5.224]
[1644620398629,209.25626,95.709,95.631,5.224]
[1644620398830,15.6869,95.71,95.63,15.7105]
[1644620399035,209.25626,95.708,95.63,15.7105]
[1644620399229,209.25626,95.709,95.63,15.7105]
[1644620400332,218.954823,95.709,95.63,15.7105]
[1644620400531,218.954823,95.709,95.631,5.226]
[1644620400730,218.954823,95.709,95.64,15.6854]
[1644620400930,15.6869,95.71,95.64,15.6854]
[1644620401133,15.6869,95.71,95.64,15.7094]
[1644620401332,2.38366791,95.709,95.64,0.024]
[1644620401537,2.38366791,95.709,95.631,5.226]
[1644620401731,15.6886,95.7,95.631,5.226]
[1644620402132,18.61299452,95.699,95.631,5.226]
[1644620402635,18.61299452,95.698,95.61,0.024]
[1644620402833,18.61299452,95.698,95.59,0.024]
[1644620402834,23.429938,95.697,95.59,0.024]
[1644620403134,22.430738,95.696,95.59,0.024]
[1644620403334,46.9622,95.695,95.591,5.227]
[1644620403540,15.694,95.69,95.591,5.227]
[1644620403738,21.392875,95.689,95.6,0.024]
[1644620403934,20.449075,95.688,95.6,0.024]
[1644620404137,0.916,95.687,95.58,0.024]
[1644620404335,20.449075,95.686,95.58,0.024]
[1644620404537,15.6971,95.67,95.56,0.024]
[1644620404737,46.105634,95.669,95.538,4.42119406]
[1644620405034,48.292996,95.668,95.55,0.024]
[1644620405235,1.6,95.651,95.53,0.024]
[1644620405639,21.558834,95.65,95.53,0.024]
[1644620405836,49.2306,95.649,95.531,5.23]
[1644620406034,21.558834,95.648,95.54,0.024]
[1644620406234,15.705,95.63,95.54,0.024]
[1644620406440,59.043541,95.629,95.53,0.024]
[1644620406635,1.6,95.621,95.52,0.024]
[1644620406837,1.6,95.621,95.483,50.31259406]
[1644620406838,59.043541,95.62,95.5,0.024]
[1644620407135,75.26954539,95.62,95.49,0.024]
[1644620407339,15.7125,95.6,95.491,5.232]
[1644620407536,49.6172,95.599,95.49,0.024]
[1644620407737,65.84320439,95.599,95.49,0.024]
[1644620407935,68.2268723,95.599,95.491,5.232]
[1644620408136,2.38366791,95.598,95.5,0.024]
[1644620408439,15.7142,95.58,95.501,5.232]
[1644620408639,186.2361,95.667,95.51,0.024]
[1644620408835,186.2361,95.667,95.501,5.232]
[1644620408836,0.9717,95.666,95.581,19.75569077]
[1644620409036,0.9993,95.65,95.582,5.228]
[1644620409335,1.6,95.731,95.59,0.024]
[1644620409336,1.026,95.7,95.59,0.024]
[1644620409540,15.6966,95.69,95.591,5.226]
[1644620409736,1.026,95.7,95.583,19.08235497]
[1644620409737,1.026,95.7,95.59,8.464]
[1644620409935,1.026,95.7,95.592,21.70571482]
[1644620410136,1.026,95.7,95.6,0.024]
[1644620410336,1.026,95.7,95.601,5.227]
[1644620410538,1.026,95.7,95.61,0.024]
[1644620411742,1.026,95.7,95.61,15.7124]
[1644620412043,1.026,95.7,95.62,0.024]
[1644620412647,2.38366791,95.737,95.621,5.226]
[1644620412842,15.6872,95.75,95.621,5.226]
[1644620413050,84.044952,95.749,95.621,5.226]
[1644620413248,100.853943,95.748,95.622,24.6104]
[1644620413450,209.228488,95.747,95.623,5.224]
[1644620413649,0.8935,95.747,95.622,24.6104]
[1644620414050,2.38366791,95.746,95.622,24.6104]
[1644620414252,2.38366791,95.746,95.623,5.224]
[1644620414451,210.026756,95.745,95.623,5.224]
[1644620414653,209.186356,95.744,95.623,5.224]
[1644620414849,256.470556,95.743,95.623,5.224]
[1644620415050,209.186356,95.742,95.623,5.224]
[1644620415252,15.6885,95.74,95.623,5.224]
[1644620415750,209.186356,95.739,95.623,5.224]
[1644620416377,209.186356,95.739,95.63,15.6849]
[1644620416573,48.2837,95.743,95.64,0.024]
[1644620417073,48.2837,95.743,95.63,0.024]
[1644620417375,0.9995,95.743,95.66,15.6804]
[1644620418374,0.9995,95.743,95.661,46.6376]
[1644620418577,0.9995,95.743,95.67,15.6783]
[1644620418874,0.9995,95.743,95.67,15.7023]
[1644620419879,15.6787,95.8,95.671,5.224]
[1644620420078,15.6787,95.8,95.68,15.6999]
[1644620420274,0.9997,95.799,95.681,23.451]
[1644620420477,0.9997,95.799,95.681,28.673]
[1644620420676,0.9996,95.808,95.681,28.673]
[1644620420877,46.018837,95.807,95.681,5.222]
[1644620421076,0.9995,95.806,95.681,5.222]
[1644620421278,19.124057,95.805,95.69,15.6755]
[1644620421481,15.6779,95.8,95.7,0.024]
[1644620421677,19.124057,95.805,95.69,0.024]
[1644620421678,252.343964,95.799,95.69,0.024]
[1644620421877,252.343964,95.798,95.69,0.024]
[1644620422080,0.9989,95.797,95.69,0.024]
[1644620422283,233.219907,95.796,95.69,0.024]
[1644620422480,233.219907,95.796,95.67,0.024]
[1644620422481,0.9987,95.795,95.67,0.024]
[1644620422679,15.6816,95.78,95.67,0.024]
[1644620422881,23.2196,95.779,95.67,0.024]
[1644620423079,24.2182,95.779,95.67,0.024]
[1644620423280,2.38366791,95.778,95.67,0.024]
[1644620423579,25.35,95.777,95.67,0.024]
[1644620423781,25.35,95.777,95.66,0.024]
[1644620423983,26.73516791,95.777,95.663,2.38366791]
[1644620424179,26.73516791,95.777,95.67,0.024]
[1644620424383,26.73516791,95.777,95.671,5.223]
[1644620424582,26.73516791,95.777,95.68,0.024]
[1644620425084,26.73516791,95.777,95.681,5.223]
[1644620425281,26.73516791,95.777,95.69,0.024]
[1644620425482,26.73516791,95.777,95.691,5.222]
[1644620425687,26.73516791,95.777,95.68,15.6774]
[1644620425885,26.73516791,95.777,95.69,0.024]
[1644620426087,2.38366791,95.798,95.69,0.024]
[1644620426286,24.434126,95.797,95.691,2.38366791]
[1644620426588,4.044275,95.796,95.7,0.024]
[1644620426785,113.0,95.875,95.72,15.6686]
[1644620426786,15.6693,95.85,95.72,15.6686]
[1644620426986,29.082362,95.849,95.721,47.9084]
[1644620427285,4.631362,95.848,95.721,47.9084]
[1644620427485,1.0,95.847,95.721,47.9084]
[1644620427787,24.451,95.849,95.721,47.9084]
[1644620427983,4.631362,95.848,95.721,47.9084]
[1644620428284,0.9998,95.847,95.722,5.22]
[1644620428486,24.451,95.849,95.722,5.22]
[1644620428685,87.391077,95.848,95.73,15.6685]
[1644620428884,87.391077,95.848,95.722,5.22]
[1644620428885,25.4492,95.849,95.731,5.219]
[1644620429184,25.4492,95.849,95.721,47.9084]
[1644620429185,2.38366791,95.848,95.722,5.22]
[1644620429387,3.38096791,95.848,95.721,47.9084]
[1644620429584,3.38096791,95.848,95.722,5.22]
[1644620430686,3.38096791,95.848,95.73,15.6678]
[1644620430888,208.907641,95.847,95.731,5.219]
[1644620431088,0.9967,95.846,95.731,5.219]
[1644620431286,3.38036791,95.846,95.731,5.219]
[1644620431489,85.96386491,95.845,95.731,5.219]
[1644620431686,84.631303,95.844,95.731,5.219]
[1644620431892,83.632503,95.843,95.74,15.6671]
[1644620432086,1.0,95.842,95.74,15.6671]
[1644620432287,15.6702,95.84,95.731,5.219]
[1644620432489,339.668431,95.839,95.731,5.219]
[1644620432688,315.697131,95.838,95.731,5.219]
[1644620432892,316.703131,95.838,95.731,5.219]
[1644620433087,318.08079891,95.838,95.731,5.219]
[1644620433287,318.08079891,95.837,95.731,5.219]
[1644620433488,15.6719,95.83,95.731,5.219]
[1644620433689,1.012,95.829,95.731,5.219]
[1644620433889,326.423392,95.829,95.731,5.219]
[1644620434087,328.80705991,95.829,95.731,5.219]
[1644620434287,327.79505991,95.828,95.731,5.219]
[1644620434487,327.79505991,95.828,95.712,5.22]
[1644620434688,27.63056791,95.827,95.72,15.6704]
[1644620434892,26.63056791,95.827,95.721,5.22]
[1644620435091,24.2469,95.827,95.713,5.22]
[1644620435290,0.9788,95.826,95.712,5.22]
[1644620436191,22.9693,95.839,95.712,5.22]
[1644620436392,22.9693,95.839,95.73,15.6686]
[1644620436393,0.9578,95.838,95.73,15.6686]
[1644620436693,3.34146791,95.838,95.731,46.128]
[1644620436892,2.38366791,95.837,95.731,46.128]
[1644620437092,0.9471,95.836,95.731,46.128]
[1644620437493,2.38366791,95.835,95.731,46.128]
[1644620437691,209.060064,95.834,95.732,5.22]
[1644620437896,23.5976,95.833,95.731,46.128]
[1644620438097,23.5976,95.833,95.74,15.6676]
[1644620438293,1.03,95.834,95.741,5.219]
[1644620438494,1.03,95.834,95.733,5.22]
[1644620438692,1.03,95.834,95.732,5.22]
[1644620439093,1.03,95.834,95.75,15.666]
[1644620439295,2.38366791,95.833,95.731,46.128]
[1644620439494,1.03,95.834,95.732,5.22]
[1644620440097,1.03,95.834,95.733,18.39154037]
[1644620440295,0.9997,95.889,95.74,15.6679]
[1644620440496,24.4729,95.901,95.74,15.6679]
[1644620440702,0.9388,95.889,95.741,5.218]
[1644620440895,311.717515,95.888,95.741,2.38366791]
[1644620441095,24.8886,95.887,95.742,5.218]
[1644620441497,75.672108,95.886,95.742,5.218]
[1644620441698,15.6627,95.88,95.77,15.6624]
[1644620441897,104.44991,95.879,95.77,15.6624]
[1644620442099,123.652182,95.879,95.77,15.6624]
[1644620442297,122.900083,95.878,95.77,15.6624]
[1644620442698,122.900083,95.879,95.77,15.6624]
[1644620442898,122.900083,95.878,95.77,15.6624]
[1644620443098,122.900083,95.878,95.75,52.2078]
[1644620443099,122.900083,95.878,95.78,15.6609]
[1644620443302,123.655283,95.877,95.78,15.6609]
[1644620443504,122.900083,95.877,95.78,15.6609]
[1644620443701,122.900083,95.878,95.78,15.6609]
[1644620443903,0.9685,95.879,95.78,15.6609]
[1644620444102,122.900083,95.877,95.78,15.6609]
[1644620444305,0.9685,95.879,95.78,15.6609]
[1644620444703,2.38366791,95.876,95.78,15.6609]
[1644620445507,0.9685,95.879,95.78,15.6609]
[1644620445702,19.212354,95.878,95.78,15.6609]
[1644620446102,87.115521,95.878,95.78,15.6609]
[1644620447314,87.115521,95.886,95.78,15.6609]
[1644620447512,87.115521,95.885,95.78,15.6609]
[1644620447912,87.115521,95.884,95.78,15.6609]
[1644620448113,2.38366791,95.884,95.78,15.6609]
[1644620448313,15.6622,95.88,95.781,5.216]
[1644620448516,327.368407,95.879,95.78,15.6609]
[1644620448713,327.368407,95.878,95.78,15.6609]
[1644620448914,327.368407,95.877,95.78,15.6609]
[1644620449114,15.6622,95.88,95.78,15.6609]
[1644620449315,327.368407,95.879,95.78,15.6609]
[1644620449514,327.368407,95.879,95.781,5.216]
[1644620449915,327.368407,95.879,95.79,15.6609]
[1644620450344,19.212354,95.878,95.791,5.216]
[1644620450643,19.212354,95.877,95.791,5.216]
[1644620450841,24.0107,95.887,95.783,5.216]
[1644620451049,19.212354,95.886,95.784,23.9027]
[1644620451341,51.359342,95.886,95.785,5.216]
[1644620451742,260.420093,95.886,95.8,15.6579]
[1644620453243,0.9993,95.901,95.8,15.6579]
[1644620453442,15.6575,95.9,95.801,23.0728]
[1644620453848,15.6575,95.9,95.81,15.6571]
[1644620454451,82.435823,95.899,95.81,15.6571]
[1644620454654,0.9993,95.901,95.81,15.6571]
[1644620456053,19.555525,95.9,95.81,15.6571]
[1644620456350,19.555525,95.9,95.83,15.6547]
[1644620456552,46.989398,95.918,95.83,15.6547]
[1644620456748,19.555525,95.917,95.83,15.6547]
[1644620456948,46.2793,95.919,95.83,15.6547]
[1644620457350,2.38366791,95.929,95.83,15.6547]
[1644620458350,0.9998,95.939,95.85,15.6511]
[1644620458549,2.38366791,95.94,95.85,15.6511]
[1644620458755,0.04723289,95.95,95.851,5.214]
[1644620458955,0.04723289,95.95,95.852,48.7772]
[1644620459251,54.086866,95.949,95.87,15.6471]
[1644620460651,0.9983,95.948,95.87,15.6471]
[1644620460854,209.354324,95.947,95.87,15.6471]
[1644620461050,211.73799191,95.947,95.87,15.6471]
[1644620461251,2.38366791,95.947,95.87,15.6471]
[1644620461455,2.38366791,95.947,95.871,5.213]
[1644620461653,2.38366791,95.947,95.88,15.6459]
[1644620462858,2.38366791,95.968,95.88,15.6459]
[1644620463055,0.04723289,95.97,95.881,5.212]
[1644620463258,0.04723289,95.98,95.9,15.6388]
[1644620463457,48.1582,96.028,95.901,48.6338]
[1644620463458,0.04723289,95.99,95.901,48.6338]
[1644620463655,0.04723289,96.0,95.901,67.02534037]
[1644620463856,0.04723289,96.02,95.902,7.59366791]
[1644620464062,0.04723289,95.99,95.902,25.98520828]
[1644620464255,0.04723289,96.01,95.903,18.39154037]
[1644620464458,0.04723289,96.01,95.904,5.21]
[1644620464657,4.254989,96.009,95.903,18.39154037]
[1644620464856,0.04723289,96.0,95.92,15.6361]
[1644620465058,0.9898,96.039,95.921,24.2648]
[1644620465257,0.04723289,96.03,95.921,29.4728]
[1644620465757,240.92417,96.029,95.921,29.4728]
[1644620465957,0.04723289,96.02,95.921,29.4728]
[1644620466257,4.258537,96.019,95.921,29.4728]
[1644620466561,0.04723289,96.01,95.922,2.38366791]
[1644620466758,2.38366791,96.057,95.922,2.38366791]
[1644620466759,4.258537,96.009,95.95,15.6343]
[1644620466961,0.04723289,96.01,95.951,72.51]
[1644620467258,15.9516,96.122,95.951,29.37584349]
[1644620467458,0.04778421,96.07,95.953,62.51]
[1644620467658,0.04778421,96.11,95.953,62.51]
[1644620467858,0.04778421,96.06,95.97,15.6285]
[1644620468058,1.0,96.128,95.97,15.6285]
[1644620468059,0.04778421,96.1,95.97,15.6285]
[1644620468258,0.04778421,96.12,95.971,29.4409]
[1644620468462,0.04778421,96.09,95.971,26.61856791]
[1644620468658,0.04778421,96.11,95.972,28.4707]
[1644620468886,0.04778421,96.08,95.972,30.85436791]
[1644620469067,0.04778421,96.1,95.973,2.38366791]
[1644620469260,0.04778421,96.07,95.973,2.38366791]
[1644620469464,0.43145212,96.117,95.975,10.0]
[1644620469660,3.38366791,96.128,95.976,5.205]
[1644620469863,1.0,96.128,96.01,15.6216]
[1644620470061,1.0,96.128,96.011,5.204]
[1644620470462,1.0,96.128,96.002,5.204]
[1644620470863,1.0,96.128,96.003,2.38366791]
[1644620471063,3.38366791,96.128,96.03,15.6198]
[1644620471262,95.331798,96.127,96.001,52.822]
[1644620471463,0.9998,96.127,96.001,47.618]
[1644620471667,2.38366791,96.126,96.001,47.618]
[1644620471863,2.38366791,96.126,95.98,52.0828]
[1644620472063,13.94108386,96.125,95.98,52.0828]
[1644620472465,15.32565177,96.124,95.98,52.0828]
[1644620472665,25.336,96.123,95.98,52.0828]
[1644620472862,15.6226,96.12,95.99,15.626]
[1644620473072,46.75324,96.119,95.99,15.626]
[1644620473266,46.75284,96.121,95.99,15.626]
[1644620473463,15.32565177,96.119,95.99,15.626]
[1644620473663,0.9977,96.118,95.99,15.626]
[1644620473864,15.6241,96.11,95.99,15.626]
[1644620474065,15.6241,96.11,95.991,5.205]
[1644620474267,15.6241,96.11,96.01,15.624]
[1644620474566,3.38366791,96.109,95.973,23.9257]
[1644620474765,45.6703,96.108,95.974,22.9712]
[1644620474964,1.0,96.107,95.975,5.206]
[1644620475165,3.38366791,96.107,95.975,5.206]
[1644620475565,2.38366791,96.106,95.975,5.206]
[1644620475767,2.38366791,96.123,95.99,15.6263]
[1644620475966,28.201384,96.122,95.991,27.9282]
[1644620476166,1.0,96.122,95.991,22.7232]
[1644620476389,29.634637,96.121,95.991,22.7232]
[1644620476568,29.634637,96.121,95.992,5.205]
[1644620476770,239.614749,96.139,95.992,5.205]
[1644620476968,29.634637,96.12,95.992,5.205]
[1644620477168,238.614949,96.119,95.992,67.715]
[1644620477370,2.38366791,96.138,95.992,82.52309037]
[1644620477570,243.67349,96.137,95.992,82.52309037]
[1644620477772,15.6187,96.14,96.03,15.618]
[1644620477971,0.9991,96.139,96.03,15.618]
[1644620478171,271.898737,96.139,96.03,15.618]
[1644620478372,270.899637,96.138,96.03,15.618]
[1644620478577,0.9986,96.137,96.03,15.618]
[1644620478773,237.268975,96.137,96.03,15.618]
[1644620478977,11.043354,96.136,96.03,15.618]
[1644620479182,0.9981,96.135,96.03,15.618]
[1644620479385,11.043354,96.134,96.031,5.203]
[1644620479587,0.9972,96.151,96.06,15.6156]
[1644620479785,2.38366791,96.172,96.06,15.6156]
[1644620479786,0.9969,96.161,96.06,15.6156]
[1644620479982,0.9992,96.171,96.06,15.6156]
[1644620480382,2.38366791,96.17,96.06,15.6156]
[1644620480783,1.002,96.169,96.06,15.6156]
[1644620480982,15.6099,96.19,96.09,15.6089]
[1644620481384,1.008,96.187,96.09,15.6089]
[1644620481585,1.01,96.189,96.09,15.6089]
[1644620481785,2.38366791,96.207,96.091,5.2]
[1644620482186,2.38366791,96.188,96.1,15.6081]
[1644620482383,0.04781788,96.18,96.1,15.6081]
[1644620482785,2.38366791,96.219,96.1,15.6081]
[1644620482985,1.0,96.218,96.1,15.6081]
[1644620483483,2.38366791,96.217,96.1,15.6081]
[1644620483685,15.6066,96.21,96.1,15.6081]
[1644620483902,0.04781788,96.2,96.11,15.6065]
[1644620484302,0.9265,96.199,96.11,15.6065]
[1644620484504,0.04781788,96.19,96.11,15.6065]
[1644620484702,0.04781788,96.19,96.111,5.199]
[1644620484905,0.04781788,96.2,96.092,5.2]
[1644620485106,0.04781788,96.18,96.091,5.2]
[1644620485405,0.04781788,96.2,96.091,5.2]
[1644620485804,0.04781788,96.2,96.12,15.605]
[1644620489107,15.6066,96.21,96.12,15.605]
[1644620489308,0.04819363,96.2,96.12,15.605]
[1644620489513,2.38366791,96.199,96.12,15.605]
[1644620489711,0.04819363,96.2,96.12,15.605]
[1644620489908,1.0,96.199,96.12,15.605]
[1644620490109,2.38366791,96.199,96.1,15.6074]
[1644620490309,0.04819363,96.19,96.1,15.6074]
[1644620490907,2.38366791,96.189,96.1,15.6074]
[1644620491115,0.04819363,96.19,96.101,5.2]
[1644620491308,0.04819363,96.19,96.11,15.605]
[1644620491509,0.04819363,96.21,96.11,15.605]
[1644620491709,238.058953,96.209,96.111,5.2]
[1644620492009,265.572694,96.209,96.111,5.2]
[1644620492809,242.574223,96.208,96.111,5.2]
[1644620493023,3.38336791,96.208,96.11,15.605]
[1644620493209,244.95789091,96.207,96.11,15.605]
[1644620493410,243.573423,96.206,96.11,15.605]
[1644620493612,242.574223,96.205,96.11,15.605]
[1644620493910,15.6069,96.2,96.11,15.605]
[1644620494111,0.9982,96.199,96.11,15.605]
[1644620494312,0.04819363,96.19,96.11,15.605]
[1644620494511,221.776158,96.189,96.111,5.199]
[1644620494713,209.011596,96.189,96.11,15.605]
[1644620494916,209.011596,96.188,96.11,15.605]
[1644620495117,211.39526391,96.188,96.111,1.45078543]
[1644620495315,138.09561891,96.187,96.111,1.45078543]
[1644620495514,135.711951,96.186,96.112,1.45078543]
[1644620495915,135.711951,96.189,96.111,1.45078543]
[1644620496118,135.740045,96.188,96.115,1.45078543]
[1644620496317,135.740045,96.188,96.116,1.45078543]
[1644620496516,0.04819363,96.18,96.112,1.45078543]
[1644620496716,135.740045,96.179,96.109,1.45078543]
[1644620496916,2.38366791,96.217,96.114,62.51]
[1644620497116,1.006,96.292,96.17,1.45078543]
[1644620497318,2.38366791,96.239,96.183,1.45078543]
[1644620497521,2.38366791,96.239,96.181,1.45078543]
[1644620497720,2.38366791,96.239,96.179,1.45078543]
[1644620497919,2.38366791,96.239,96.177,1.45078543]
[1644620498120,15.6,96.24,96.177,1.45078543]
[1644620498322,18.770726,96.239,96.171,1.45078543]
[1644620498519,18.770726,96.238,96.17,1.45078543]
[1644620498718,19.776726,96.238,96.169,1.45078543]
[1644620498922,21.15439391,96.237,96.168,1.45078543]
[1644620499119,22.15439391,96.237,96.168,1.45078543]
[1644620499327,177.07503491,96.236,96.162,1.45078543]
[1644620499619,178.08649291,96.235,96.159,1.45078543]
[1644620499819,3.37696791,96.235,96.159,1.45078543]
[1644620500022,177.09319291,96.234,96.159,1.45078543]
[1644620500219,2.38366791,96.234,96.159,1.45078543]
[1644620500419,15.5996,96.24,96.157,1.45078543]
[1644620500619,15.5996,96.24,96.167,1.45078543]
[1644620500821,208.989838,96.239,96.169,1.45078543]
[1644620501020,2.38366791,96.25,96.168,1.45078543]
[1644620501222,2.38366791,96.25,96.172,1.45078543]
[1644620501420,2.38366791,96.262,96.17,1.45078543]
[1644620501621,27.378603,96.261,96.173,1.45078543]
[1644620502119,236.388916,96.261,96.172,1.45078543]
[1644620502321,236.388916,96.261,96.174,1.45078543]
[1644620502322,3.38566791,96.26,96.174,1.45078543]
[1644620502525,15.5988,96.25,96.174,1.45078543]
[1644620502721,1.018,96.249,96.174,1.45078543]
[1644620502921,3.40166791,96.249,96.168,1.45078543]
[1644620503121,3.40166791,96.249,96.165,1.45078543]
[1644620503322,2.38366791,96.249,96.174,1.45078543]
[1644620503721,2.38366791,96.249,96.171,1.45078543]
[1644620503925,42.068013,96.248,96.169,1.45078543]
[1644620504122,210.082033,96.249,96.165,1.45078543]
[1644620504323,209.032033,96.248,96.16,17.04808543]
[1644620504521,209.032033,96.248,96.163,1.45078543]
[1644620504724,0.04834528,96.24,96.163,1.45078543]
[1644620505025,209.032033,96.248,96.167,1.45078543]
[1644620505223,233.296447,96.247,96.167,1.45078543]
[1644620505622,233.296447,96.246,96.164,1.45078543]
[1644620505822,0.04834528,96.24,96.163,1.45078543]
[1644620506023,233.296447,96.245,96.17,15.5966]
[1644620506225,233.827134,96.244,96.17,15.5966]
[1644620506523,15.5988,96.25,96.158,1.45078543]
[1644620506524,209.852257,96.249,96.158,1.45078543]
[1644620506727,0.04834528,96.24,96.158,1.45078543]
[1644620506927,0.04834528,96.24,96.166,1.45078543]
[1644620507225,17.98246791,96.25,96.165,1.45078543]
[1644620507427,0.04834528,96.24,96.165,1.45078543]
[1644620507628,18.03081319,96.25,96.164,1.45078543]
[1644620507824,17.98246791,96.25,96.163,1.45078543]
[1644620508028,0.04834528,96.24,96.163,1.45078543]
[1644620508227,18.03081319,96.25,96.163,1.45078543]
[1644620508429,2.38366791,96.239,96.168,1.45078543]
[1644620508628,2.38366791,96.239,96.162,1.45078543]
[1644620508828,2.38366791,96.239,96.16,15.599]
[1644620509128,12.98316791,96.24,96.16,15.599]
[1644620509326,13.03151319,96.24,96.16,15.599]
[1644620509527,12.98316791,96.24,96.16,15.599]
[1644620510028,12.98316791,96.24,96.16,17.04978543]
[1644620510257,12.98316791,96.24,96.163,1.45078543]
[1644620510458,13.03151319,96.24,96.161,5.197]
[1644620510657,0.04834528,96.25,96.17,15.5973]
[1644620510859,0.04834528,96.23,96.163,1.45078543]
[1644620511059,0.9493,96.267,96.163,1.45078543]
[1644620511060,52.04934528,96.26,96.163,1.45078543]
[1644620511355,0.04834528,96.25,96.16,1.45078543]
[1644620511556,15.6003,96.24,96.161,1.45078543]
[1644620511755,15.6003,96.24,96.158,1.45078543]
[1644620511958,2.38366791,96.239,96.158,1.45078543]
[1644620512159,2.38366791,96.239,96.157,1.45078543]
[1644620512370,0.04834528,96.23,96.157,1.45078543]
[1644620512657,2.38366791,96.239,96.15,17.05148543]
[1644620513059,0.04834528,96.24,96.153,1.45078543]
[1644620513256,0.04834528,96.24,96.152,1.45078543]
[1644620513655,0.04834528,96.24,96.15,15.6007]
[1644620513856,15.6015,96.23,96.15,15.6007]
[1644620514157,15.6015,96.23,96.151,1.45078543]
[1644620514357,15.6015,96.23,96.15,15.6007]
[1644620515361,0.8024,96.229,96.15,15.6007]
[1644620515559,61.406001,96.228,96.15,15.6007]
[1644620515759,0.7528,96.227,96.15,15.6007]
[1644620515963,0.703,96.229,96.15,15.6007]
[1644620516160,0.6533,96.226,96.15,15.6007]
[1644620516360,15.6015,96.23,96.15,15.6007]
[1644620516562,0.554,96.225,96.15,15.6007]
[1644620517562,0.9496,96.229,96.15,15.6007]
[1644620517966,15.6019,96.22,96.142,1.45078543]
[1644620518162,15.65024528,96.22,96.14,15.6027]
[1644620518363,15.65024528,96.22,96.135,1.45078543]
[1644620518564,2.38366791,96.219,96.129,1.45078543]
[1644620518764,2.38366791,96.219,96.116,5.198]
[1644620518765,17.82966844,96.219,96.116,5.198]
[1644620518963,15.6068,96.2,96.106,1.45078543]
[1644620519164,0.04834528,96.19,96.103,1.45078543]
[1644620519367,0.04834528,96.19,96.092,1.45078543]
[1644620519564,15.44600053,96.189,96.092,1.45078543]
[1644620519765,0.04834528,96.18,96.089,1.45078543]
[1644620519965,0.04834528,96.18,96.087,1.45078543]
[1644620520167,15.6147,96.17,96.088,1.45078543]
[1644620520367,15.66304528,96.17,96.089,1.45078543]
[1644620520570,0.04834528,96.16,96.083,1.45078543]
[1644620520769,3.38326791,96.169,96.077,1.45078543]
[1644620520967,0.04834528,96.15,96.077,1.45078543]
[1644620521365,3.43266791,96.159,96.076,1.45078543]
[1644620521565,0.04834528,96.14,96.076,1.45078543]
[1644620521767,15.6175,96.14,96.07,1.45078543]
[1644620521967,0.04834528,96.13,96.07,1.45078543]
[1644620522167,0.04834528,96.14,96.069,1.45078543]
[1644620522370,2.38366791,96.149,96.069,1.45078543]
[1644620522567,0.04834528,96.14,96.069,1.45078543]
[1644620522771,2.38366791,96.149,96.069,1.45078543]
[1644620522976,0.04834528,96.14,96.069,1.45078543]
[1644620523170,2.38366791,96.149,96.063,1.45078543]